bitfinex/quotes_ETHUSD_20250223
["timestamp","ask_amount","ask_price","bid_price","bid_amount"]
[1740350100096,5.2,2793.2,2793.1,3.58025]
[1740350100255,5.2,2793.2,2793.0,3.58035]
[1740350100461,5.2,2793.2,2793.1,3.58025]
[1740350101856,5.9587,2793.4,2793.3,3.57999]
[1740350103070,5.2,2793.4,2793.3,3.57999]
[1740350104502,5.2,2793.4,2793.3,4.376519]
[1740350106178,5.91803808,2794.2,2794.1,3.57896]
[1740350107082,5.91803808,2794.2,2794.0,7.1581]
[1740350107923,5.91803808,2794.2,2794.1,3.57896]
[1740350108549,5.91803808,2794.2,2794.0,3.57902]
[1740350108706,5.91803808,2794.2,2794.0,3.57899]
[1740350108907,5.91803808,2794.2,2794.1,3.57896]
[1740350110096,5.91803808,2794.2,2794.0,3.57899]
[1740350110515,0.8094,2794.1,2793.2,0.8039]
[1740350110716,5.2,2794.0,2793.2,0.8039]
[1740350110916,5.2,2794.0,2793.7,3.57939]
[1740350111113,6.0094,2793.9,2792.9,0.8039]
[1740350111319,0.8094,2793.6,2793.0,3.58037]
[1740350111513,0.8094,2793.6,2793.2,3.58004]
[1740350111514,0.268,2793.5,2793.2,3.58004]
[1740350111825,0.8094,2793.4,2793.1,3.58024]
[1740350113445,0.8094,2793.4,2793.0,3.58035]
[1740350113612,0.8094,2793.4,2793.1,3.58023]
[1740350113937,0.8094,2793.4,2792.5,4.36965]
[1740350114241,0.8094,2793.4,2793.2,3.58003]
[1740350114242,5.2,2793.3,2793.2,3.58003]
[1740350114736,5.2,2793.3,2793.1,3.58023]
[1740350115037,5.2,2793.3,2793.1,3.58018]
[1740350117829,5.2,2793.3,2793.1,7.16036]
[1740350118133,5.2,2793.3,2793.1,3.58017]
[1740350118626,5.2,2793.3,2793.1,7.16032]
[1740350118821,5.2,2793.3,2793.2,3.58012]
[1740350119136,5.467,2793.3,2793.2,3.58012]
[1740350122449,5.2,2793.3,2793.2,3.58012]
[1740350122651,5.467,2793.3,2793.2,3.58012]
[1740350123046,5.467,2793.3,2793.1,3.58014]
[1740350123254,5.467,2793.3,2793.2,3.58012]
[1740350126157,5.2,2793.3,2793.2,3.58012]
[1740350126457,5.466,2793.3,2793.2,3.58012]
[1740350127760,5.2,2793.3,2793.2,6.58012]
[1740350127960,5.25,2794.3,2794.2,3.57884]
[1740350128159,0.72383424,2794.4,2794.3,3.57871]
[1740350128332,0.72383424,2794.4,2794.1,3.57896]
[1740350128529,0.72383424,2794.4,2794.3,3.57871]
[1740350129751,0.72383424,2794.4,2794.1,3.57896]
[1740350129960,5.25,2794.3,2793.5,0.8325]
[1740350130131,0.7535,2794.2,2793.8,3.57934]
[1740350130334,0.7535,2794.2,2793.9,3.57921]
[1740350131125,0.7535,2794.2,2793.7,3.57944]
[1740350131552,0.7535,2794.2,2793.9,3.57922]
[1740350132051,1.77763942,2794.2,2793.9,3.57922]
[1740350132452,1.77763942,2794.2,2793.7,3.57942]
[1740350132659,1.77763942,2794.2,2793.8,3.57923]
[1740350133637,1.77763942,2794.2,2793.9,3.57921]
[1740350133949,0.7535,2794.2,2793.9,3.57921]
[1740350134155,0.7535,2794.2,2794.0,3.57902]
[1740350134453,0.7535,2794.2,2793.9,3.57921]
[1740350134657,6.0035,2794.2,2793.9,3.57914]
[1740350135354,6.0035,2794.2,2793.9,7.15829]
[1740350135655,6.0035,2794.2,2793.9,3.57914]
[1740350136069,6.74687277,2794.2,2793.9,3.57914]
[1740350137645,6.74687277,2794.2,2793.7,3.5794]
[1740350137852,6.74687277,2794.2,2793.9,3.57922]
[1740350138678,6.74687277,2794.2,2793.9,3.57915]
[1740350139260,6.74687277,2794.2,2793.9,3.57922]
[1740350139640,6.74687277,2794.2,2793.9,7.15844]
[1740350139846,6.74687277,2794.2,2793.9,3.57922]
[1740350140849,6.74687277,2794.2,2793.8,3.57923]
[1740350141048,6.74687277,2794.2,2793.9,3.57919]
[1740350142489,6.74687277,2794.2,2793.8,3.57923]
[1740350143780,6.74687277,2794.2,2793.9,3.57922]
[1740350144089,6.74687277,2794.2,2793.8,3.57923]
[1740350144751,6.74687277,2794.2,2793.8,7.15852]
[1740350145911,6.74687277,2794.2,2793.9,3.57921]
[1740350146782,6.74687277,2794.2,2793.7,3.57944]
[1740350146981,6.74687277,2794.2,2793.9,3.57922]
[1740350147387,6.74687277,2794.2,2793.7,3.57937]
[1740350147587,6.74687277,2794.2,2793.8,3.57927]
[1740350148405,6.74687277,2794.2,2793.7,3.57937]
[1740350148770,6.74687277,2794.2,2793.9,3.57922]
[1740350148969,6.74687277,2794.2,2793.7,3.57937]
[1740350149187,6.0035,2794.2,2793.8,3.57935]
[1740350149993,6.0035,2794.2,2793.9,3.57921]
[1740350150524,6.0035,2794.2,2793.7,3.57937]
[1740350150825,6.0035,2794.2,2793.8,3.57928]
[1740350152121,6.0035,2794.2,2793.3,4.41248]
[1740350152324,6.0035,2794.2,2793.8,3.57932]
[1740350153821,6.0035,2794.2,2793.6,3.57956]
[1740350154033,6.0035,2794.2,2793.8,3.57935]
[1740350155526,5.25,2794.2,2793.7,3.57948]
[1740350155830,0.7231559,2793.9,2793.7,3.57948]
[1740350155987,0.264,2793.8,2793.7,3.57948]
[1740350158353,5.514,2793.8,2793.7,3.57948]
[1740350160814,5.514,2793.8,2793.6,7.15911]
[1740350161050,5.514,2793.8,2793.7,3.57948]
[1740350169932,5.514,2793.8,2793.6,3.57954]
[1740350170136,5.514,2793.8,2793.6,3.57953]
[1740350170337,5.514,2793.8,2793.7,3.57948]
[1740350173279,5.514,2793.8,2793.6,3.57959]
[1740350173576,5.514,2793.8,2793.7,3.57948]
[1740350174860,5.514,2793.8,2793.6,3.57955]
[1740350175047,5.514,2793.8,2793.7,3.57948]
[1740350176489,5.514,2793.8,2793.6,3.57955]
[1740350176671,5.514,2793.8,2793.7,3.57948]
[1740350177279,5.514,2793.8,2793.6,3.57953]
[1740350177487,5.514,2793.8,2793.7,3.57948]
[1740350179658,5.514,2793.8,2793.3,3.57996]
[1740350179659,0.8104,2793.7,2793.3,3.57996]
[1740350179849,6.0604,2793.7,2793.3,3.57996]
[1740350180647,6.0604,2793.7,2793.4,3.57986]
[1740350181142,6.0604,2793.7,2793.3,3.57996]
[1740350181366,6.0604,2793.7,2793.3,3.57993]
[1740350181567,6.0604,2793.7,2793.3,7.15984]
[1740350181975,6.0604,2793.7,2793.0,4.35867]
[1740350182193,6.0604,2793.7,2793.4,3.57986]
[1740350183643,6.0604,2793.7,2793.4,3.5798]
[1740350184086,6.0604,2793.7,2793.0,1.35029705]
[1740350184288,6.0604,2793.7,2793.4,3.57984]
[1740350186192,6.0604,2793.7,2793.2,7.16002]
[1740350186389,7.67637216,2793.7,2793.2,7.16002]
[1740350186698,7.67637216,2793.7,2793.3,3.57996]
[1740350187193,7.67637216,2793.7,2792.8,3.58062]
[1740350187194,0.7823,2793.2,2791.7,6.75130048]
[1740350187499,0.7967,2792.7,2792.5,3.58094]
[1740350187698,0.262,2792.6,2792.5,3.58094]
[1740350187856,0.262,2792.6,2792.3,3.58119]
[1740350188056,0.262,2792.6,2792.4,3.58111]
[1740350188287,0.97793036,2792.6,2792.4,3.58111]
[1740350188697,0.97793036,2792.6,2792.5,3.58102]
[1740350190498,0.262,2792.6,2792.5,3.58102]
[1740350195596,5.25,2792.7,2792.6,3.58089]
[1740350195783,5.511,2792.7,2792.6,3.58089]
[1740350198928,5.25,2792.7,2792.6,3.58089]
[1740350199230,5.511,2792.7,2792.6,3.58089]
[1740350202133,5.25,2792.7,2792.6,3.58089]
[1740350202851,6.23247587,2792.9,2792.5,3.58102]
[1740350203032,6.23247587,2792.9,2792.8,3.58063]
[1740350207864,5.25,2792.9,2792.8,3.58063]
[1740350208030,0.8285,2793.6,2793.2,3.58012]
[1740350208243,0.26,2793.6,2793.5,3.57973]
[1740350208738,0.98936205,2793.7,2793.6,3.57961]
[1740350208922,0.26,2793.7,2793.6,3.57961]
[1740350210659,5.25,2793.9,2793.7,3.57948]
[1740350210863,5.25,2793.9,2793.8,3.57935]
[1740350211829,0.72615282,2794.1,2794.0,3.57909]
[1740350212344,5.51,2794.3,2794.0,3.57909]
[1740350212525,0.551,2794.2,2794.0,3.57909]
[1740350212726,1.25535461,2794.2,2794.0,3.57909]
[1740350215667,1.25535461,2794.2,2793.8,3.57926]
[1740350215861,1.25535461,2794.2,2794.0,3.57908]
[1740350216630,2.08345461,2794.2,2794.0,3.57908]
[1740350220487,2.08345461,2794.2,2793.9,3.57916]
[1740350220660,2.08345461,2794.2,2794.0,3.57909]
[1740350220859,2.08345461,2794.2,2793.9,3.57921]
[1740350221085,2.08345461,2794.2,2793.9,3.57922]
[1740350223350,2.08345461,2794.2,2793.8,3.57926]
[1740350224060,2.08345461,2794.2,2793.9,3.57917]
[1740350226390,2.08345461,2794.2,2794.0,3.57909]
[1740350227094,0.259,2794.1,2794.0,3.57909]
[1740350227988,0.259,2794.1,2793.0,0.7845]
[1740350227989,0.7607,2794.0,2793.0,0.7845]
[1740350228174,0.7607,2794.0,2793.3,3.57992]
[1740350228175,2.80807534,2793.9,2793.3,3.57992]
[1740350228350,2.80807534,2793.9,2793.5,3.57973]
[1740350228551,6.38729534,2793.9,2793.5,3.57973]
[1740350229067,2.80807534,2793.9,2793.3,3.57992]
[1740350229588,9.58988,2794.0,2793.4,3.57986]
[1740350229753,11.21346753,2794.0,2793.4,3.57986]
[1740350230172,14.79266753,2794.0,2793.4,3.57986]
[1740350230683,3.57925,2793.9,2793.4,3.57986]
[1740350232295,3.57925,2793.9,2793.3,3.57991]
[1740350232476,3.57925,2793.9,2793.5,3.57972]
[1740350232682,0.98354934,2793.8,2793.5,4.38112]
[1740350232883,0.98354934,2793.8,2793.3,3.57991]
[1740350233197,0.98354934,2793.8,2793.4,3.57985]
[1740350233556,2.34518263,2793.8,2793.4,3.57985]
[1740350235360,2.34518263,2793.8,2793.4,3.57986]
[1740350236338,2.34518263,2793.8,2793.3,7.15983]
[1740350236598,2.34518263,2793.8,2793.4,3.57978]
[1740350242419,2.34518263,2793.8,2793.5,3.57971]
[1740350244419,0.98354934,2793.8,2793.6,3.57955]
[1740350244593,0.259,2793.8,2793.7,3.57948]
[1740350246310,2.12233329,2794.0,2793.8,3.57928]
[1740350246507,0.259,2793.9,2793.8,3.57928]
[1740350258903,2.12233329,2794.0,2793.9,3.57922]
[1740350259099,2.38033329,2794.0,2793.9,3.57922]
[1740350262727,2.12233329,2794.0,2793.9,3.57922]
[1740350262894,1.61963329,2794.0,2793.9,3.57922]
[1740350265492,1.61963329,2794.0,2793.8,3.57929]
[1740350267933,1.9332856,2794.0,2793.7,3.57947]
[1740350269348,0.17641323,2795.1,2793.6,0.7509]
[1740350269510,4.62198122,2795.6,2793.6,0.7509]
[1740350269511,0.7752,2795.6,2794.8,0.7509]
[1740350269709,1.36163329,2795.5,2794.8,0.7509]
[1740350269911,1.36163329,2795.1,2794.2,4.3297]
[1740350270092,1.36163329,2795.1,2794.8,3.578]
[1740350270297,1.36163329,2795.1,2794.9,3.57783]
[1740350270499,1.36163329,2795.1,2794.8,3.578]
[1740350270699,1.36163329,2795.1,2794.8,3.57799]
[1740350270929,0.23988333,2795.0,2794.9,3.57786]
[1740350271398,0.23988333,2795.0,2794.8,7.15599]
[1740350271598,0.23988333,2795.0,2794.8,3.57799]
[1740350273112,1.36163329,2794.9,2794.5,3.57838]
[1740350273310,1.36163329,2794.9,2794.5,3.57845]
[1740350273507,1.36163329,2794.9,2794.4,3.57854]
[1740350273508,1.36163329,2794.9,2794.3,0.833]
[1740350273707,1.36163329,2794.9,2794.6,3.57823]
[1740350274344,1.36163329,2794.9,2794.3,0.833]
[1740350274639,1.36163329,2794.9,2794.6,3.57829]
[1740350275544,1.36163329,2794.9,2794.6,7.15652]
[1740350275907,1.36163329,2794.9,2794.6,3.57823]
[1740350276107,1.36163329,2794.9,2794.7,3.57818]
[1740350277141,1.36163329,2794.9,2794.5,3.57843]
[1740350277331,1.36163329,2794.9,2794.7,3.57809]
[1740350278556,0.23988333,2795.0,2794.7,3.57809]
[1740350278845,0.23988333,2795.0,2794.8,3.57807]
[1740350279054,0.23988333,2795.0,2794.7,3.57809]
[1740350279614,0.23988333,2795.0,2794.7,3.57808]
[1740350280040,5.48988333,2795.0,2794.8,3.578]
[1740350280247,0.68515166,2794.9,2794.8,3.578]
[1740350280425,5.48988333,2795.0,2794.8,3.578]
[1740350280735,5.48988333,2795.0,2794.8,3.57799]
[1740350280928,5.48988333,2795.0,2794.9,4.34584]
[1740350281338,5.25,2795.0,2794.9,4.34584]
[1740350283618,0.1064,2795.4,2795.3,3.57743]
[1740350283860,0.1064,2795.4,2795.3,4.38393]
[1740350285746,1.51531845,2796.3,2796.2,3.57628]
[1740350286077,2.4538503,2796.3,2796.2,3.57628]
[1740350286271,2.4538503,2796.3,2796.1,3.57639]
[1740350286649,1.6700503,2796.3,2796.2,3.57628]
[1740350287181,0.67653185,2796.3,2796.2,3.57628]
[1740350287469,0.7872,2796.7,2796.4,3.57602]
[1740350287646,0.262,2796.5,2796.4,3.57602]
[1740350289250,9.56901874,2796.9,2796.8,3.57551]
[1740350289251,8.041,2796.9,2796.8,3.57551]
[1740350289564,8.303,2796.9,2796.5,3.57583]
[1740350289758,8.303,2796.9,2796.4,3.57602]
[1740350290071,10.015819,2796.9,2796.6,3.57576]
[1740350290286,10.015819,2796.9,2796.4,3.57602]
[1740350290441,10.015819,2796.9,2796.6,3.57575]
[1740350290641,10.015819,2796.9,2796.6,7.15144]
[1740350291081,10.015819,2796.9,2796.6,3.57569]
[1740350291253,10.015819,2796.9,2796.6,7.15138]
[1740350291878,10.015819,2796.9,2796.6,3.57569]
[1740350292053,10.015819,2796.9,2796.6,7.15137]
[1740350292239,10.015819,2796.9,2796.6,3.57568]
[1740350292980,10.015819,2796.9,2796.6,7.15138]
[1740350293156,10.015819,2796.9,2796.6,3.57568]
[1740350293353,10.015819,2796.9,2796.7,4.34012]
[1740350293557,8.041,2796.9,2796.8,3.57551]
[1740350293869,4.428,2797.2,2797.1,4.33963]
[1740350300257,4.428,2797.2,2796.0,6.1788]
[1740350300459,3.57515,2797.1,2796.6,3.57573]
[1740350300786,4.691,2797.2,2796.6,4.36448]
[1740350300954,3.57519,2797.1,2796.6,0.7888]
[1740350301160,3.57519,2797.1,2796.6,4.36455]
[1740350301485,3.57533,2797.0,2796.6,0.7888]
[1740350301981,3.57519,2797.1,2796.6,4.36456]
[1740350302185,3.57536,2797.0,2796.6,0.7888]
[1740350302492,3.57536,2797.0,2796.6,4.36456]
[1740350302662,3.57536,2797.0,2796.6,0.7888]
[1740350305691,8.990058,2797.2,2796.6,3.57575]
[1740350305852,3.57535,2797.0,2796.5,3.57589]
[1740350307292,4.36983,2797.1,2796.6,3.57568]
[1740350307469,7.94506,2797.1,2796.6,3.57568]
[1740350307800,7.15036,2797.1,2796.6,3.57568]
[1740350308259,3.57513,2797.1,2796.6,4.373947]
[1740350309292,3.57513,2797.1,2796.7,3.57562]
[1740350309659,3.57513,2797.1,2796.6,4.374017]
[1740350310400,3.57513,2797.1,2796.7,3.57559]
[1740350310899,3.57513,2797.1,2796.6,4.374017]
[1740350311074,3.57513,2797.1,2796.7,3.57562]
[1740350312411,8.26501,2797.2,2796.8,4.3858]
[1740350312625,3.57514,2797.1,2796.8,0.8103]
[1740350313501,4.428,2797.2,2796.9,3.57531]
[1740350314142,4.428,2797.2,2797.0,3.57518]
[1740350314294,4.428,2797.2,2797.0,0.438548]
[1740350314490,4.428,2797.2,2797.1,3.57513]
[1740350315616,4.428,2797.2,2797.0,3.57525]
[1740350315816,4.428,2797.2,2797.1,3.57513]
[1740350319637,4.428,2797.2,2797.1,4.39823]
[1740350320042,4.428,2797.2,2797.1,0.8231]
[1740350320642,4.428,2797.2,2797.0,3.5752]
[1740350320833,4.428,2797.2,2797.0,7.50792]
[1740350321549,4.428,2797.2,2797.0,3.93272]
[1740350321857,4.428,2797.2,2797.0,7.50788]
[1740350322210,4.428,2797.2,2797.1,3.57513]
[1740350341377,4.428,2797.2,2797.0,1.71512036]
[1740350341671,4.428,2797.2,2797.1,0.54655204]
[1740350342862,4.428,2797.2,2797.1,4.12168204]
[1740350356494,4.428,2797.2,2797.1,7.88318204]
[1740350360418,4.428,2797.2,2797.1,13.27318204]
[1740350361309,0.7977,2798.2,2798.1,3.57385]
[1740350361811,0.70569417,2798.9,2798.1,0.7788]
[1740350361970,0.005,2798.9,2798.6,3.57313]
[1740350362166,0.005,2798.9,2798.4,3.57338]
[1740350362368,0.8074,2798.8,2798.6,3.57315]
[1740350362607,0.8074,2798.8,2798.6,3.57311]
[1740350362807,0.8074,2798.8,2798.7,3.57308]
[1740350363315,0.8074,2798.8,2798.4,3.57337]
[1740350363499,0.8074,2798.8,2798.4,7.14675]
[1740350363702,0.8074,2798.8,2798.4,7.14676]
[1740350364376,0.8074,2798.8,2798.4,3.57337]
[1740350364576,0.8074,2798.8,2798.6,3.5732]
[1740350364981,0.005,2798.9,2798.7,3.57308]
[1740350365300,0.005,2798.9,2798.8,3.57295]
[1740350373123,0.8225,2798.9,2798.8,3.57295]
[1740350373325,0.005,2798.9,2798.8,3.57295]
[1740350387849,0.7725,2799.1,2798.7,4.012268]
[1740350388149,0.7725,2799.1,2798.9,3.57282]
[1740350389087,0.7725,2799.1,2798.9,3.57276]
[1740350389355,1.3561281,2800.8,2798.7,0.439208]
[1740350389356,3.57191,2799.7,2799.1,3.57253]
[1740350389528,3.57168,2799.8,2799.2,3.57244]
[1740350389712,3.57168,2799.8,2799.3,3.5722]
[1740350390051,3.57168,2799.8,2799.4,3.57214]
[1740350390247,3.57149,2800.0,2799.5,3.57204]
[1740350390448,4.68884011,2799.9,2799.5,3.57204]
[1740350390858,0.7704,2799.8,2799.5,3.57204]
[1740350391054,0.7704,2799.8,2799.7,3.57181]
[1740350391260,0.7704,2799.8,2799.6,3.57192]
[1740350391952,0.7704,2799.8,2799.2,5.39]
[1740350392129,0.7704,2799.8,2799.3,3.57219]
[1740350392328,0.7704,2799.8,2799.4,3.57213]
[1740350393256,0.7704,2799.8,2799.5,3.57204]
[1740350393551,0.7704,2799.8,2799.3,3.57219]
[1740350393752,4.34212,2799.8,2799.3,3.57219]
[1740350393953,4.40468,2799.6,2799.2,5.39]
[1740350394174,4.40468,2799.6,2799.2,8.96244]
[1740350394659,0.8327,2799.6,2799.2,8.96244]
[1740350395654,0.8327,2799.6,2799.2,5.39]
[1740350395958,0.8327,2799.6,2799.1,3.57257]
[1740350395959,3.57207,2799.5,2799.1,3.57257]
[1740350397661,0.8327,2799.6,2799.1,7.14505]
[1740350397817,4.40469,2799.6,2799.1,3.57248]
[1740350400378,4.40469,2799.6,2798.6,3.5732]
[1740350400379,0.7652,2799.3,2798.7,0.439208]
[1740350400573,0.259,2799.2,2798.9,3.57283]
[1740350400776,0.259,2799.2,2799.1,3.57257]
[1740350401124,0.7684,2799.6,2798.9,4.37826]
[1740350401322,0.7684,2799.6,2799.4,3.5721]
[1740350401323,1.0274,2799.6,2799.4,3.5721]
[1740350402074,1.0274,2799.6,2799.4,3.57212]
[1740350402253,1.0274,2799.6,2799.5,3.57206]
[1740350402434,0.7684,2799.6,2799.2,3.57235]
[1740350402632,0.7684,2799.6,2799.3,3.57232]
[1740350402933,0.7684,2799.6,2799.3,4.286787]
[1740350403439,0.7684,2799.6,2799.2,3.57235]
[1740350404267,0.7684,2799.6,2799.2,7.14474]
[1740350404469,0.7684,2799.6,2799.3,3.57225]
[1740350405579,0.7684,2799.6,2799.2,3.57235]
[1740350405781,0.7684,2799.6,2799.4,3.57217]
[1740350406280,0.7684,2799.6,2799.2,3.57235]
[1740350406698,1.7659262,2799.9,2799.3,1.159935]
[1740350406699,0.1497981,2799.9,2799.3,1.159935]
[1740350406974,0.1497981,2799.9,2799.7,3.57172]
[1740350407182,0.1497981,2799.9,2799.8,3.57168]
[1740350411792,0.1497981,2799.9,2799.8,4.32658]
[1740350411960,0.1497981,2799.9,2799.8,6.48676728]
[1740350412165,0.1497981,2799.9,2799.8,15.42676728]
[1740350413417,8.1e-06,2799.9,2799.8,15.42676728]
[1740350413622,8.1e-06,2799.9,2799.8,14.07063918]
[1740350417954,8.1e-06,2799.9,2799.8,13.52063918]
[1740350419655,8.1e-06,2799.9,2799.8,23.18063351]
[1740350419953,0.7776,2801.9,2801.8,3.56913]
[1740350420738,0.7899,2802.5,2802.3,3.56848]
[1740350420967,0.7899,2802.5,2802.4,3.56836]
[1740350421883,0.1497981,2802.6,2802.5,3.56824]
[1740350422645,0.1497981,2802.6,2802.4,3.56836]
[1740350423190,0.1497981,2802.6,2802.4,3.56829]
[1740350423576,0.1497981,2802.6,2802.4,3.56828]
[1740350423759,0.1497981,2802.6,2802.4,7.13657]
[1740350424087,0.1497981,2802.6,2802.4,3.56828]
[1740350424863,0.7767,2802.5,2802.4,3.56828]
[1740350425264,0.1497981,2802.6,2802.5,3.56824]
[1740350426603,0.1497981,2802.6,2802.2,3.56854]
[1740350427098,0.1497981,2802.6,2802.3,3.56848]
[1740350428395,0.1497981,2802.6,2802.2,3.56854]
[1740350428564,0.1497981,2802.6,2802.2,4.282275]
[1740350428981,0.1497981,2802.6,2802.2,7.13707]
[1740350429864,0.1497981,2802.6,2802.2,3.56853]
[1740350430255,0.1497981,2802.6,2802.3,3.56848]
[1740350431498,0.1497981,2802.6,2802.3,3.56849]
[1740350432700,0.1497981,2802.6,2802.2,3.56853]
[1740350432995,0.1497981,2802.6,2802.3,3.925233]
[1740350440433,0.1497981,2802.6,2802.3,0.356853]
[1740350440610,3.7179181,2802.6,2802.1,3.56865]
[1740350440942,0.1497981,2802.6,2802.2,3.56856]
[1740350444913,0.1497981,2802.6,2802.5,4.34624]
[1740350445115,8.1e-06,2802.6,2802.5,10.69026931]
[1740350446213,8.1e-06,2802.6,2802.5,10.79026931]
[1740350446416,8.1e-06,2802.6,2802.5,12.16015112]
[1740350448259,8.1e-06,2802.6,2802.5,12.85778398]
[1740350453690,8.1e-06,2802.6,2802.5,16.63278398]
[1740350453863,8.1e-06,2802.6,2802.5,12.85778398]
[1740350454974,8.1e-06,2802.6,2802.5,16.63278398]
[1740350455300,0.005,2803.9,2803.8,3.56658]
[1740350455459,0.005,2803.9,2803.8,4.357038]
[1740350455800,1e-05,2803.9,2803.8,7.357038]
[1740350456309,1e-05,2803.9,2803.8,7.907038]
[1740350456490,1e-05,2803.9,2803.8,7.357038]
[1740350457418,1e-05,2803.9,2803.8,8.788338]
[1740350457785,1e-05,2803.9,2803.8,8.98833233]
[1740350458317,1e-05,2803.9,2803.8,9.26280587]
[1740350460213,1e-05,2803.9,2803.8,8.96281154]
[1740350463895,1e-05,2803.9,2803.8,12.73781154]
[1740350464110,1e-05,2803.9,2803.8,8.96281154]
[1740350468411,0.83321,2803.9,2803.8,4.357038]
[1740350468738,0.83321,2803.9,2803.8,3.56658]
[1740350473758,0.83321,2803.9,2803.7,3.5667]
[1740350474217,0.83321,2803.9,2803.6,6.56677]
[1740350475119,0.83321,2803.9,2803.5,3.56695]
[1740350475325,3.56647,2803.9,2803.5,3.56695]
[1740350475635,0.8054,2803.6,2803.3,3.56718]
[1740350476024,0.8054,2803.6,2803.4,3.56708]
[1740350477493,4.004059,2803.6,2802.9,3.56771]
[1740350477652,0.7835,2803.1,2802.6,3.56804]
[1740350477853,3.56754,2803.1,2802.6,3.56804]
[1740350478069,0.7835,2802.9,2802.5,3.5682]
[1740350478653,0.7835,2802.9,2802.4,3.56828]
[1740350478862,0.7758,2802.8,2802.5,6.56815]
[1740350480266,0.7758,2802.8,2802.6,3.56804]
[1740350486921,0.7758,2802.8,2802.6,3.56802]
[1740350488005,0.7758,2802.8,2802.6,7.13607]
[1740350488220,0.7758,2802.8,2802.6,3.56802]
[1740350490488,0.7758,2802.8,2802.5,3.0]
[1740350490689,0.7758,2802.8,2802.7,3.56798]
[1740350491964,0.7758,2802.8,2802.5,6.5682]
[1740350492101,0.7758,2802.8,2802.6,3.56806]
[1740350495412,0.7758,2802.8,2802.5,7.76402]
[1740350495618,0.7758,2802.8,2802.6,3.56804]
[1740350501984,0.7758,2802.8,2802.5,7.76402]
[1740350502145,0.7758,2802.8,2802.7,3.56798]
[1740350503468,1.0546,2803.0,2802.7,3.56798]
[1740350503776,1.0546,2803.0,2802.8,3.56782]
[1740350505069,1.0546,2803.0,2802.6,3.56809]
[1740350505275,1.0546,2803.0,2802.7,3.56792]
[1740350511692,1.0546,2803.0,2802.7,3.56798]
[1740350512799,0.7946,2803.0,2802.7,3.56798]
[1740350512970,0.7946,2803.0,2802.7,4.224778]
[1740350513166,0.7533,2803.2,2802.9,3.56773]
[1740350513678,0.7533,2803.2,2803.0,3.56749]
[1740350521009,0.7533,2803.2,2803.1,3.56747]
[1740350522929,0.7533,2803.2,2802.7,0.656798]
[1740350523086,0.7533,2803.2,2802.9,3.56768]
[1740350523785,0.7533,2803.2,2803.0,3.56758]
[1740350524422,0.7533,2803.2,2803.1,3.56747]
[1740350527532,0.7533,2803.2,2802.9,3.56771]
[1740350528029,0.7533,2803.2,2802.9,3.56764]
[1740350528207,0.7533,2803.2,2803.0,3.56759]
[1740350530109,0.7533,2803.2,2803.0,3.26759]
[1740350531743,0.7533,2803.2,2803.1,3.56747]
[1740350532100,0.7533,2803.2,2803.0,3.56758]
[1740350532811,0.7533,2803.2,2803.1,3.56747]
[1740350533008,0.8,2803.5,2803.4,3.56705]
[1740350533216,1e-05,2803.9,2803.8,3.56658]
[1740350540666,1e-05,2803.9,2803.8,7.36618]
[1740350540964,1e-05,2803.9,2803.8,7.91618]
[1740350541147,1e-05,2803.9,2803.8,9.421151]
[1740350551494,0.1497981,2805.4,2805.3,3.56468]
[1740350551802,8.1e-06,2805.4,2805.3,7.36378]
[1740350552309,8.1e-06,2805.4,2805.3,8.01378]
[1740350552482,8.1e-06,2805.4,2805.3,8.38274999]
[1740350552667,8.1e-06,2805.4,2805.3,8.58274432]
[1740350553083,8.1e-06,2805.4,2805.3,12.34374432]
[1740350553263,2.78720791,2807.6,2805.3,12.34374432]
[1740350553264,0.7888,2807.7,2807.2,3.56218]
[1740350553498,0.7888,2807.7,2807.3,3.56205]
[1740350553707,2.38369679,2807.7,2807.5,3.5618]
[1740350553909,0.7888,2807.7,2807.6,3.56176]
[1740350554058,0.7888,2807.7,2807.2,3.0]
[1740350554263,0.72136274,2807.8,2807.6,3.56164]
[1740350554465,0.72136274,2807.8,2807.4,3.56193]
[1740350554709,4.34582,2808.0,2807.4,3.56193]
[1740350554907,7.66438291,2807.9,2807.3,3.0]
[1740350555061,11.22588291,2807.9,2807.3,6.56213]
[1740350555268,7.66438291,2807.9,2807.3,6.56206]
[1740350555815,7.66438291,2807.9,2807.3,3.56207]
[1740350556026,7.66438291,2807.9,2807.4,3.56193]
[1740350556317,0.84488829,2807.8,2807.4,3.56193]
[1740350556488,0.84488829,2807.8,2807.3,3.56205]
[1740350556816,0.8099,2807.7,2807.0,6.56242]
[1740350557021,2.78720791,2807.3,2805.9,0.8331]
[1740350557318,0.783,2807.2,2806.8,3.0]
[1740350559216,0.783,2807.2,2806.8,6.56273]
[1740350559647,0.783,2807.2,2806.8,3.0]
[1740350560392,4.34535,2807.2,2806.8,3.0]
[1740350560578,3.5624,2807.1,2806.6,3.0]
[1740350560778,4.68575887,2807.1,2806.6,6.563]
[1740350561795,8.24826887,2807.1,2806.6,6.563]
[1740350562095,3.56263,2807.0,2806.4,3.56321]
[1740350562290,3.56263,2807.0,2806.5,3.56314]
[1740350562677,3.56263,2807.0,2806.6,3.0]
[1740350562875,4.10952889,2807.0,2806.6,3.0]
[1740350565603,0.54689889,2807.0,2806.3,3.56331]
[1740350565833,3.56259,2807.0,2806.4,3.56322]
[1740350568431,3.56272,2806.9,2806.5,3.0]
[1740350568794,3.56272,2806.9,2806.4,3.0]
[1740350570037,3.56272,2806.9,2806.4,6.56328]
[1740350571361,0.7694,2806.5,2805.9,3.56389]